fUSD/lending_fUSD_20250305
["ID","MTS","AMOUNT","RATE_DAILY","PERIOD"]
[355474991,1741195838849,-1046.65,0.00010994,2]
[355474992,1741195838859,-500.0,0.00010994,2]
[355474993,1741195838870,-500.0,0.00010994,2]
[355474994,1741195838882,-500.0,0.00010994,2]
[355474995,1741195838891,-2220.66,0.00010994,2]
[355474996,1741195838900,-395.60826953,0.00010994,2]
[355474997,1741195838923,-737.77173047,0.00010994,2]
[355474998,1741195838932,-727.11,0.00010994,2]
[355474999,1741195838941,-954.01827053,0.00010994,2]
[355475000,1741195838953,-263.92172947,0.00010994,2]
[355475001,1741195838962,-663.04365053,0.00010994,2]
[355475002,1741195838987,-421.56634947,0.00010994,2]
[355475003,1741195838996,-1144.13,0.00010994,2]
[355475004,1741195839006,-1042.28,0.00010994,2]
[355475005,1741195839015,-926.9,0.00010994,2]
[355475006,1741195839024,-318.14873772,0.00010994,2]
[355475008,1741195840178,-181.85126228,0.00010994,2]
[355475009,1741195840187,-553.71,0.00010994,2]
[355475010,1741195840196,-305.60482462,0.00010994,2]
[355475011,1741195840219,-449.59239,0.00010994,2]
[355475012,1741195840231,-860.92322561,0.00010994,2]
[355475034,1741195843543,-1713.13955977,0.00010994,2]
[355475035,1741195843556,-500.0,0.00010994,2]
[355475036,1741195843568,-972.94,0.00010994,2]
[355475037,1741195843579,-1703.13,0.00010994,2]
[355475038,1741195843590,-671.88,0.00010994,2]
[355475039,1741195843601,-1931.88,0.00010994,2]
[355475040,1741195843612,-810.79,0.00010994,2]
[355475041,1741195843623,-500.0,0.00010994,2]
[355475042,1741195843635,-1479.67,0.00010994,2]
[355475043,1741195843646,-1074.26,0.00010994,2]
[355475044,1741195843658,-500.0,0.00010994,2]
[355475045,1741195843670,-500.0,0.00010994,2]
[355475046,1741195843683,-4726.16,0.00010994,2]
[355475047,1741195843694,-1356.15,0.00010994,2]
[355475048,1741195843703,-1342.5,0.00010994,2]
[355475049,1741195843712,-1041.47,0.00010994,2]
[355475050,1741195843722,-2262.82,0.00010994,2]
[355475051,1741195843732,-2138.27,0.00010994,2]
[355475052,1741195843743,-3298.38,0.00010994,2]
[355475053,1741195843755,-500.0,0.00010994,2]
[355475054,1741195843768,-1584.32,0.00010994,2]
[355475055,1741195843779,-4152.0,0.00010994,2]
[355475056,1741195843795,-11469.08,0.00010994,2]
[355475057,1741195843806,-1326.63,0.00010994,2]
[355475058,1741195843819,-3598.24,0.00010994,2]
[355475059,1741195843831,-500.0,0.00010994,2]
[355475060,1741195843843,-1029.65,0.00010994,2]
[355475061,1741195843855,-838.99,0.00010994,2]
[355475062,1741195843867,-500.0,0.00010994,2]
[355475063,1741195843880,-1099.8,0.00010994,2]
[355475064,1741195843891,-500.0,0.00010994,2]
[355475065,1741195843905,-551.71,0.00010994,2]
[355475066,1741195843917,-1788.24,0.00010994,2]
[355475067,1741195843928,-811.13,0.00010994,2]
[355475068,1741195843939,-2245.84,0.00010994,2]
[355475069,1741195843951,-6662.1,0.00010994,2]
[355475070,1741195843963,-826.2,0.00010994,2]
[355475071,1741195843973,-983.06,0.00010994,2]
[355475072,1741195843984,-1466.97,0.00010994,2]
[355475073,1741195843996,-500.0,0.00010994,2]
[355475074,1741195844008,-533.35,0.00010994,2]
[355475075,1741195844020,-500.0,0.00010994,2]
[355475076,1741195844032,-2384.14,0.00010994,2]
[355475077,1741195844043,-1535.6,0.00010994,2]
[355475078,1741195844054,-942.09,0.00010994,2]
[355475079,1741195844068,-500.0,0.00010994,2]
[355475080,1741195844079,-2333.05,0.00010994,2]
[355475081,1741195844089,-500.0,0.00010994,2]
[355475082,1741195844100,-767.17,0.00010994,2]
[355475083,1741195844111,-19522.88,0.00010994,2]
[355475084,1741195844124,-500.0,0.00010994,2]
[355475085,1741195844137,-9980.62,0.00010994,2]
[355475086,1741195844148,-500.0,0.00010994,2]
[355475087,1741195844158,-725.92,0.00010994,2]
[355475088,1741195844168,-500.0,0.00010994,2]
[355475089,1741195844177,-725.23,0.00010994,2]
[355475090,1741195844188,-500.0,0.00010994,2]
[355475091,1741195844199,-1715.82,0.00010994,2]
[355475092,1741195844211,-500.0,0.00010994,2]
[355475093,1741195844223,-723.45,0.00010994,2]
[355475094,1741195844233,-1359.05,0.00010994,2]
[355475095,1741195844244,-1642.69,0.00010994,2]
[355475096,1741195844255,-1379.64,0.00010994,2]
[355475097,1741195844265,-2348.7,0.00010994,2]
[355475098,1741195844275,-924.45,0.00010994,2]
[355475099,1741195844285,-1056.56,0.00010994,2]
[355475100,1741195844295,-500.0,0.00010994,2]
[355475101,1741195844307,-500.0,0.00010994,2]
[355475102,1741195844321,-1071.79,0.00010994,2]
[355475103,1741195844332,-500.0,0.00010994,2]
[355475104,1741195844343,-500.0,0.00010994,2]
[355475105,1741195844358,-500.0,0.00010995,2]
[355475106,1741195844370,-500.0,0.00010995,2]
[355475107,1741195844381,-500.0,0.00010995,2]
[355475108,1741195844391,-500.0,0.00010995,2]
[355475109,1741195844403,-582.43,0.00010995,2]
[355475110,1741195844415,-500.0,0.00010995,2]
[355475111,1741195844426,-500.0,0.00010995,2]
[355475112,1741195844437,-500.0,0.00010995,2]
[355475113,1741195844448,-500.0,0.00010995,2]
[355475114,1741195844460,-500.0,0.00010995,2]
[355475115,1741195844470,-500.0,0.00010995,2]
[355475116,1741195844482,-500.0,0.00010995,2]
[355475117,1741195844494,-500.0,0.00010995,2]
[355475118,1741195844505,-500.0,0.00010995,2]
[355475119,1741195844515,-500.0,0.00010995,2]
[355475120,1741195844526,-500.0,0.00010995,2]
[355475121,1741195844538,-500.0,0.00010995,2]
[355475122,1741195844549,-726.12,0.00010995,2]
[355475123,1741195844560,-500.0,0.00010995,2]
[355475124,1741195844576,-500.0,0.00010995,2]
[355475125,1741195844587,-500.0,0.00010995,2]
[355475126,1741195844598,-500.0,0.00010995,2]
[355475127,1741195844609,-500.0,0.00010995,2]
[355475128,1741195844620,-500.0,0.00010995,2]
[355475129,1741195844631,-200.0,0.00010995,2]
[355475130,1741195844642,-500.0,0.00010995,2]
[355475131,1741195844652,-559.84,0.00010995,2]
[355475132,1741195844663,-500.0,0.00010995,2]
[355475133,1741195844674,-500.0,0.00010995,2]
[355475134,1741195844686,-500.0,0.00010995,2]
[355475135,1741195844698,-500.0,0.00010995,2]
[355475136,1741195844709,-500.0,0.00010995,2]
[355475137,1741195844721,-500.0,0.00010995,2]
[355475138,1741195844732,-500.0,0.00010995,2]
[355475139,1741195844743,-500.0,0.00010995,2]
[355475140,1741195844754,-500.0,0.00010995,2]
[355475141,1741195844766,-500.0,0.00010995,2]
[355475142,1741195844778,-930.99,0.00010995,2]
[355475143,1741195844790,-500.0,0.00010995,2]
[355475144,1741195844805,-500.0,0.00010995,2]
[355475145,1741195844816,-500.0,0.00010995,2]
[355475146,1741195844831,-500.0,0.00010995,2]
[355475147,1741195844843,-500.0,0.00010995,2]
[355475148,1741195844854,-500.0,0.00010995,2]
[355475149,1741195844865,-683.5,0.00010995,2]
[355475150,1741195844879,-500.0,0.00010995,2]
[355475151,1741195844891,-500.0,0.00010995,2]
[355475152,1741195844904,-500.0,0.00010995,2]
[355475153,1741195844916,-500.0,0.00010995,2]
[355475154,1741195844928,-500.0,0.00010995,2]
[355475155,1741195844940,-319.42577924,0.00010995,2]
[355475156,1741195844951,-262.33422076,0.00010995,2]
[355475157,1741195844963,-500.0,0.00010995,2]
[355475158,1741195844974,-644.45,0.00010995,2]
[355475159,1741195844985,-500.0,0.00010995,2]
[355475160,1741195844996,-500.0,0.00010995,2]
[355475161,1741195845007,-723.29,0.00010995,2]
[355475162,1741195845018,-500.0,0.00010995,2]
[355475163,1741195845029,-1830.13,0.00010995,2]
[355475164,1741195845042,-1701.24,0.00010995,2]
[355475165,1741195845054,-500.0,0.00010995,2]
[355475166,1741195845067,-500.0,0.00010995,2]
[355475167,1741195845085,-500.0,0.00010995,2]
[355475168,1741195845096,-670.53,0.00010995,2]
[355475169,1741195845108,-500.0,0.00010995,2]
[355475170,1741195845119,-361.79938041,0.00010995,2]
[355475171,1741195845132,-500.0,0.00010995,2]
[355475172,1741195845144,-500.0,0.00010995,2]
[355475173,1741195845156,-500.0,0.00010995,2]
[355475174,1741195845169,-599.61,0.00010995,2]
[355475175,1741195845181,-382.50103008,0.00010995,2]
[355475176,1741195845194,-500.0,0.00010995,2]
[355475177,1741195845206,-500.0,0.00010995,2]
[355475178,1741195845218,-500.0,0.00010995,2]
[355475179,1741195845229,-519.28,0.00010995,2]
[355475180,1741195845240,-500.0,0.00010995,2]
[355475181,1741195845251,-500.0,0.00010995,2]
[355475182,1741195845262,-500.0,0.00010995,2]
[355475183,1741195845274,-1003.0,0.00010995,2]
[355475184,1741195845286,-1226.09,0.00010995,2]
[355475185,1741195845297,-728.07,0.00010995,2]
[355475186,1741195845308,-500.0,0.00010995,2]
[355475187,1741195845324,-500.0,0.00010995,2]
[355475188,1741195845335,-500.0,0.00010995,2]
[355475189,1741195845346,-500.0,0.00010995,2]
[355475190,1741195845358,-500.0,0.00010995,2]
[355475191,1741195845368,-500.0,0.00010995,2]
[355475192,1741195845379,-500.0,0.00010995,2]
[355475193,1741195845391,-500.0,0.00010995,2]
[355475194,1741195845402,-882.04,0.00010995,2]
[355475195,1741195845414,-679.54,0.00010995,2]
[355475196,1741195845427,-527.31,0.00010995,2]
[355475197,1741195845438,-500.0,0.00010995,2]
[355475198,1741195845448,-541.29,0.00010995,2]
[355475199,1741195845459,-500.0,0.00010995,2]
[355475200,1741195845471,-1340.07,0.00010995,2]
[355475201,1741195845482,-500.0,0.00010995,2]
[355475202,1741195845492,-646.35,0.00010995,2]
[355475203,1741195845503,-503.04603488,0.00010995,2]
[355475204,1741195845515,-1132.2,0.00010995,2]
[355475205,1741195845526,-500.0,0.00010995,2]
[355475207,1741195845538,-1252.31,0.00010995,2]
[355475209,1741195845548,-500.0,0.00010995,2]
[355475211,1741195845559,-873.1,0.00010995,2]
[355475213,1741195845575,-500.0,0.00010995,2]
[355475215,1741195845587,-612.59,0.00010995,2]
[355475217,1741195845598,-500.0,0.00010995,2]
[355475219,1741195845609,-1071.05,0.00010995,2]
[355475222,1741195845620,-500.0,0.00010995,2]
[355475224,1741195845631,-707.41,0.00010995,2]
[355475226,1741195845642,-1007.96,0.00010995,2]
[355475228,1741195845653,-833.73,0.00010995,2]
[355475230,1741195845664,-500.0,0.00010995,2]
[355475232,1741195845675,-500.0,0.00010995,2]
[355475234,1741195845686,-1120.25,0.00010995,2]
[355475237,1741195845697,-1367.86,0.00010995,2]
[355475239,1741195845707,-500.0,0.00010995,2]
[355475241,1741195845718,-500.0,0.00010995,2]
[355475243,1741195845728,-582.78,0.00010995,2]
[355475245,1741195845739,-599.91,0.00010995,2]
[355475247,1741195845750,-500.0,0.00010995,2]
[355475249,1741195845760,-500.0,0.00010995,2]
[355475251,1741195845771,-664.84,0.00010995,2]
[355475253,1741195845782,-500.0,0.00010995,2]
[355475255,1741195845798,-787.43,0.00010995,2]
[355475257,1741195845807,-759.42,0.00010995,2]
[355475258,1741195845822,-375.66329305,0.00010995,2]
[355475259,1741195845834,-749.52,0.00010995,2]
[355475260,1741195845845,-500.0,0.00010995,2]
[355475261,1741195845855,-733.33,0.00010995,2]
[355475262,1741195845866,-968.38,0.00010995,2]
[355475263,1741195845878,-876.19,0.00010995,2]
[355475264,1741195845889,-500.0,0.00010995,2]
[355475265,1741195845899,-500.0,0.00010995,2]
[355475266,1741195845910,-536.33,0.00010995,2]
[355475267,1741195845923,-1233.21,0.00010995,2]
[355475268,1741195845933,-500.0,0.00010995,2]
[355475269,1741195845943,-500.0,0.00010995,2]
[355475270,1741195845954,-617.35,0.00010995,2]
[355475271,1741195845965,-511.78,0.00010995,2]
[355475272,1741195845975,-500.0,0.00010995,2]
[355475273,1741195845986,-667.11,0.00010995,2]
[355475274,1741195845997,-511.78867461,0.00010995,2]
[355475275,1741195846008,-500.0,0.00010995,2]
[355475276,1741195846019,-500.0,0.00010995,2]
[355475277,1741195846030,-777.04,0.00010995,2]
[355475278,1741195846040,-524.92,0.00010995,2]
[355475279,1741195846051,-1936.66,0.00010995,2]
[355475280,1741195846061,-482.11664087,0.00010995,2]
[355475281,1741195846075,-500.0,0.00010995,2]
[355475282,1741195846085,-500.0,0.00010995,2]
[355475283,1741195846096,-219.35207031,0.00010995,2]
[355475284,1741195846106,-1346.35,0.00010995,2]
[355475286,1741195846118,-543.97,0.00010995,2]
[355475288,1741195846128,-500.0,0.00010995,2]
[355475290,1741195846138,-500.0,0.00010995,2]
[355475292,1741195846150,-500.0,0.00010995,2]
[355475294,1741195846160,-500.0,0.00010995,2]
[355475296,1741195846171,-500.0,0.00010995,2]
[355475298,1741195846182,-500.0,0.00010995,2]
[355475301,1741195846193,-500.0,0.00010995,2]
[355475303,1741195846203,-1285.75,0.00010995,2]
[355475305,1741195846214,-500.0,0.00010995,2]
[355475307,1741195846224,-769.35,0.00010995,2]
[355475308,1741195846234,-701.08,0.00010995,2]
[355475309,1741195846245,-500.0,0.00010995,2]
[355475310,1741195846256,-1117.91,0.00010995,2]
[355475311,1741195846266,-503.89,0.00010995,2]
[355475312,1741195846277,-1427.07,0.00010995,2]
[355475313,1741195846287,-548.93,0.00010995,2]
[355475314,1741195846298,-612.66,0.00010995,2]
[355475315,1741195846308,-500.0,0.00010995,2]
[355475316,1741195846324,-1045.9,0.00010995,2]
[355475317,1741195846335,-569.23,0.00010995,2]
[355475318,1741195846345,-500.0,0.00010995,2]
[355475319,1741195846356,-1075.21,0.00010995,2]
[355475320,1741195846366,-500.0,0.00010995,2]
[355475321,1741195846377,-1016.14,0.00010995,2]
[355475322,1741195846387,-500.0,0.00010995,2]
[355475323,1741195846397,-500.0,0.00010995,2]
[355475324,1741195846407,-656.22,0.00010995,2]
[355475325,1741195846417,-520.73091294,0.00010995,2]
[355475326,1741195846427,-500.0,0.00010995,2]
[355475327,1741195846438,-500.0,0.00010995,2]
[355475328,1741195846448,-1069.41,0.00010995,2]
[355475329,1741195846459,-500.0,0.00010995,2]
[355475330,1741195846470,-500.0,0.00010995,2]
[355475331,1741195846481,-242.98237214,0.00010995,2]
[355475332,1741195846491,-535.59,0.00010995,2]
[355475333,1741195846502,-669.3,0.00010995,2]
[355475334,1741195846512,-840.89,0.00010995,2]
[355475335,1741195846523,-1133.06,0.00010995,2]
[355475336,1741195846534,-500.0,0.00010995,2]
[355475337,1741195846544,-1032.77,0.00010995,2]
[355475338,1741195846555,-500.0,0.00010995,2]
[355475339,1741195846566,-1975.13,0.00010995,2]
[355475340,1741195846581,-500.0,0.00010995,2]
[355475341,1741195846594,-500.0,0.00010995,2]
[355475342,1741195846604,-654.54,0.00010995,2]
[355475343,1741195846615,-500.0,0.00010995,2]
[355475344,1741195846626,-541.93,0.00010995,2]
[355475345,1741195846637,-500.0,0.00010995,2]
[355475346,1741195846648,-550.36,0.00010995,2]
[355475347,1741195846658,-745.56,0.00010995,2]
[355475348,1741195846675,-544.32,0.00010995,2]
[355475349,1741195846686,-708.47,0.00010995,2]
[355475350,1741195846697,-500.0,0.00010995,2]
[355475351,1741195846708,-2119.36,0.00010995,2]
[355475352,1741195846719,-498.75670521,0.00010995,2]
[355475353,1741195846730,-1764.35,0.00010995,2]
[355475354,1741195846741,-877.87,0.00010995,2]
[355475355,1741195846752,-716.15,0.00010995,2]
[355475356,1741195846763,-826.28,0.00010995,2]
[355475357,1741195846774,-500.0,0.00010995,2]
[355475358,1741195846785,-3637.78,0.00010995,2]
[355475359,1741195846795,-985.09,0.00010995,2]
[355475360,1741195846809,-500.0,0.00010995,2]
[355475361,1741195846823,-500.0,0.00010995,2]
[355475362,1741195846833,-1446.39,0.00010995,2]
[355475363,1741195846844,-500.0,0.00010995,2]
[355475364,1741195846855,-603.75,0.00010995,2]
[355475365,1741195846866,-746.78,0.00010995,2]
[355475366,1741195846876,-500.0,0.00010995,2]
[355475367,1741195846887,-4258.86,0.00010995,2]
[355475368,1741195846898,-500.0,0.00010995,2]
[355475369,1741195846909,-1841.69,0.00010995,2]
[355475370,1741195846919,-651.77,0.00010995,2]
[355475371,1741195846930,-500.0,0.00010995,2]
[355475372,1741195846941,-500.0,0.00010995,2]
[355475373,1741195846951,-500.0,0.00010995,2]
[355475374,1741195846962,-511.97,0.00010995,2]
[355475375,1741195846973,-1031.79,0.00010995,2]
[355475376,1741195846983,-2940.04,0.00010995,2]
[355475377,1741195846994,-536.0,0.00010995,2]
[355475378,1741195847004,-509.24,0.00010995,2]
[355475379,1741195847472,-500.0,0.00010995,2]
[355475380,1741195847493,-2563.72,0.00010995,2]
[355475381,1741195847506,-1585.9,0.00010995,2]
[355475382,1741195847515,-500.0,0.00010995,2]
[355475383,1741195847525,-898.63,0.00010995,2]
[355475384,1741195847535,-828.55,0.00010995,2]
[355475385,1741195847544,-1400.06,0.00010995,2]
[355475386,1741195847553,-1594.96,0.00010995,2]
[355475387,1741195847563,-1189.64,0.00010995,2]
[355475388,1741195847574,-1129.31,0.00010995,2]
[355475389,1741195847584,-640.48,0.00010995,2]
[355475390,1741195847593,-659.62,0.00010995,2]
[355475391,1741195847602,-500.0,0.00010995,2]
[355475392,1741195847611,-500.0,0.00010995,2]
[355475393,1741195847620,-500.0,0.00010995,2]
[355475394,1741195847630,-6753.9,0.00010995,2]
[355475395,1741195847639,-1048.01,0.00010995,2]
[355475396,1741195847648,-506.72986542,0.00010995,2]
[355475397,1741195847657,-500.0,0.00010995,2]
[355475398,1741195847667,-1049.8,0.00010995,2]
[355475399,1741195847676,-3075.55,0.00010995,2]
[355475400,1741195847685,-893.52,0.00010995,2]
[355475401,1741195847695,-500.0,0.00010995,2]
[355475402,1741195847704,-501.17,0.00010995,2]
[355475403,1741195847713,-644.43,0.00010995,2]
[355475404,1741195847723,-1218.36,0.00010995,2]
[355475405,1741195847732,-619.97,0.00010995,2]
[355475406,1741195847741,-1562.84,0.00010995,2]
[355475407,1741195847750,-791.99,0.00010995,2]
[355475408,1741195847759,-1198.16,0.00010995,2]
[355475409,1741195847769,-500.0,0.00010995,2]
[355475410,1741195847778,-619.17294934,0.00010999,2]
[355475411,1741195847789,-550.0,0.00011,2]
[355475412,1741195847800,-142753.61315971,0.00011,2]
[355475413,1741195848661,-500.0,0.00010994,2]
[355475414,1741195848671,-9847.2046,0.00011,2]
[355475415,1741195848684,-1035.76191589,0.00011,2]
[355475416,1741195848701,-3596.42242798,0.00011,2]
[355475417,1741195848713,-9051.96761494,0.00011,2]
[355475418,1741195848722,-1000.0,0.00011,2]
[355475419,1741195848732,-1000.0,0.00011,2]
[355475420,1741195848741,-1000.0,0.00011,2]
[355475421,1741195848751,-265.0,0.00011,2]
[355475422,1741195848761,-1230.98732097,0.00011002,2]
[355475423,1741195848771,-1230.98732097,0.00011037,2]
[355475424,1741195848780,-4282.9678235,0.00011047,2]
[355475425,1741195848793,-4529.88439,0.00011047,2]
[355475426,1741195848820,-310.50669999,0.00011047,2]
[355475427,1741196009455,200.0,0.0001012,2]
[355475428,1741196169238,1298.66,8.409e-05,2]
[355475429,1741196346622,500.0,0.0001022,2]
[355475430,1741196394164,353.42,0.00010229,2]
[355475431,1741196408709,398.33,0.0001022,2]
[355475433,1741196423017,-2000.0,0.00010251,2]
[355475434,1741196533187,2993.489218,0.00010159,2]
[355475435,1741196533211,10000.0,0.00010159,2]
[355475436,1741196533233,9782.650782,0.00010159,2]
[355475437,1741196619468,217.349218,0.00010162,2]
[355475438,1741196619489,32.650782,0.00010162,2]
[355475439,1741196937701,5165.7,0.00010179,2]
[355475440,1741196968483,162.56,0.00010179,2]
[355475447,1741197031977,-1000.0,0.00010296,2]
[355475448,1741197031986,-184.99,0.0001035,2]
[355475449,1741197031996,-427.14791205,0.00010672,2]
[355475450,1741197032040,-700.0,0.00010672,2]
[355475451,1741197032123,-171.51208795,0.00010672,2]
[355475452,1741197032133,-152.48727146,0.00010852,2]
[355475453,1741197032149,-1147.51272854,0.00010852,2]
[355475454,1741197032158,-7169.45984975,0.00010852,2]
[355475455,1741197032170,-6854.46049024,0.00010852,2]
[355475456,1741197032184,-460.41945869,0.00010852,2]
[355475457,1741197032198,-3521.89109511,0.00010852,2]
[355475458,1741197032210,-322.9200006,0.00010852,2]
[355475459,1741197032246,-3685.57128069,0.00010852,2]
[355475460,1741197032256,-330.3468044,0.00010895,2]
[355475461,1741197032266,-113.65502815,0.00010895,2]
[355475462,1741197032285,-311.58050135,0.00010895,2]
[355475463,1741197032310,-387.4749431,0.00010895,2]
[355475464,1741197032353,-1238.199995,0.00010895,2]
[355475487,1741197037800,-600.0,0.00010852,2]
[355475488,1741197037811,-2949.0895324,0.00010895,2]
[355475489,1741197037820,-160.19805032,0.00010973,2]
[355475490,1741197037829,-150.0,0.00010992,2]
[355475491,1741197037839,-500.0,0.00010993,2]
[355475492,1741197037848,-590.27,0.00010993,2]
[355475493,1741197037858,-500.0,0.00010993,2]
[355475494,1741197037867,-500.0,0.00010993,2]
[355475495,1741197037876,-670.22,0.00010993,2]
[355475496,1741197037886,-500.0,0.00010993,2]
[355475497,1741197037895,-771.15,0.00010993,2]
[355475498,1741197037905,-500.0,0.00010993,2]
[355475499,1741197037914,-500.0,0.00010993,2]
[355475500,1741197037923,-500.0,0.00010993,2]
[355475501,1741197037933,-500.0,0.00010993,2]
[355475502,1741197037942,-555.25,0.00010993,2]
[355475503,1741197037951,-500.0,0.00010993,2]
[355475504,1741197037960,-500.0,0.00010993,2]
[355475505,1741197037970,-500.0,0.00010993,2]
[355475506,1741197037979,-500.0,0.00010993,2]
[355475507,1741197037989,-262.276058,0.00010993,2]
[355475508,1741197037999,-500.0,0.00010993,2]
[355475509,1741197038008,-500.0,0.00010993,2]
[355475510,1741197038017,-615.89,0.00010993,2]
[355475511,1741197038026,-291.8123209,0.00010993,2]
[355475513,1741197038426,-108.2257621,0.00010993,2]
[355475514,1741197038436,-324.75370376,0.00010993,2]
[355475515,1741197038448,-175.24629624,0.00010993,2]
[355475516,1741197038458,-638.77,0.00010993,2]
[355475517,1741197038468,-571.82,0.00010993,2]
[355475518,1741197038477,-500.0,0.00010993,2]
[355475519,1741197038487,-500.0,0.00010993,2]
[355475520,1741197038497,-500.0,0.00010993,2]
[355475521,1741197038506,-816.08,0.00010993,2]
[355475522,1741197038515,-500.0,0.00010993,2]
[355475523,1741197038527,-500.0,0.00010993,2]
[355475524,1741197038537,-173.08370376,0.00010993,2]
[355475525,1741197038550,-326.91629624,0.00010993,2]
[355475526,1741197038562,-692.87,0.00010993,2]
[355475527,1741197038572,-559.96,0.00010993,2]
[355475528,1741197038582,-500.0,0.00010993,2]
[355475529,1741197038591,-894.27,0.00010993,2]
[355475530,1741197038602,-500.0,0.00010993,2]
[355475531,1741197038612,-500.0,0.00010993,2]
[355475532,1741197038622,-500.0,0.00010993,2]
[355475533,1741197038632,-353.70597765,0.00010993,2]
[355475534,1741197038664,-146.29402235,0.00010993,2]
[355475535,1741197038673,-500.0,0.00010993,2]
[355475536,1741197038683,-724.3,0.00010993,2]
[355475537,1741197038692,-500.0,0.00010993,2]
[355475538,1741197038701,-500.0,0.00010993,2]
[355475539,1741197038711,-500.0,0.00010993,2]
[355475540,1741197038720,-500.0,0.00010993,2]
[355475541,1741197038730,-796.76,0.00010993,2]
[355475542,1741197038739,-725.64,0.00010993,2]
[355475543,1741197038748,-500.0,0.00010993,2]
[355475544,1741197039042,-500.0,0.00010993,2]
[355475545,1741197039053,-500.0,0.00010993,2]
[355475546,1741197039062,-717.0,0.00010993,2]
[355475547,1741197039071,-500.0,0.00010993,2]
[355475548,1741197039080,-500.0,0.00010993,2]
[355475549,1741197039090,-500.0,0.00010993,2]
[355475550,1741197039099,-500.0,0.00010993,2]
[355475551,1741197039108,-500.0,0.00010993,2]
[355475552,1741197039116,-500.0,0.00010993,2]
[355475553,1741197039126,-500.0,0.00010993,2]
[355475554,1741197039135,-500.0,0.00010993,2]
[355475555,1741197039144,-558.16,0.00010993,2]
[355475556,1741197039153,-827.09,0.00010993,2]
[355475557,1741197039162,-696.55,0.00010993,2]
[355475558,1741197039171,-5782.33,0.00010993,2]
[355475559,1741197039181,-544.51,0.00010993,2]
[355475560,1741197039192,-500.0,0.00010993,2]
[355475561,1741197039205,-926.22,0.00010993,2]
[355475562,1741197039215,-599.32,0.00010993,2]
[355475563,1741197039224,-1167.31,0.00010993,2]
[355475564,1741197039234,-543.35,0.00010993,2]
[355475565,1741197039243,-696.12,0.00010993,2]
[355475566,1741197039253,-1367.83,0.00010993,2]
[355475567,1741197039262,-500.0,0.00010993,2]
[355475568,1741197039273,-1591.33,0.00010993,2]
[355475569,1741197039282,-697.96,0.00010993,2]
[355475570,1741197039291,-500.0,0.00010993,2]
[355475571,1741197039301,-500.0,0.00010993,2]
[355475572,1741197039311,-1040.33,0.00010993,2]
[355475573,1741197039320,-1784.85,0.00010993,2]
[355475574,1741197039329,-500.0,0.00010993,2]
[355475575,1741197039339,-998.41,0.00010993,2]
[355475576,1741197039348,-3882.53,0.00010993,2]
[355475577,1741197039358,-1166.58,0.00010993,2]
[355475578,1741197039367,-3714.32,0.00010993,2]
[355475579,1741197039376,-824.57,0.00010993,2]
[355475580,1741197039386,-500.0,0.00010993,2]
[355475581,1741197039395,-500.0,0.00010993,2]